[Event "*** Titled Tuesday Blitz"]
[Site "Chess.com"]
[Date "2021.02.02"]
[Round "3"]
[White "elchiricr"]
[Black "Zq1"]
[Result "1/2-1/2"]
[WhiteElo "2334"]
[BlackElo "2513"]
[TimeControl "180+1"]
[EndTime "10:30:08 PST"]
[Termination "Game drawn by repetition"]

1. d4 {[%clk 0:01:58.1]} 1... Nf6 {[%clk 0:02:58.6]} 2. c4 {[%clk 0:01:58.7]}
2... a6 {[%clk 0:02:57.9]} 3. Nc3 {[%clk 0:01:58.8]} 3... c5 {[%clk 0:02:57.7]}
4. d5 {[%clk 0:01:58.8]} 4... b5 {[%clk 0:02:57.4]} 5. cxb5 {[%clk 0:01:58.9]}
5... axb5 {[%clk 0:02:57.3]} 6. Nxb5 {[%clk 0:01:58.5]} 6... Qa5+ {[%clk
0:02:56.7]} 7. Nc3 {[%clk 0:01:58.7]} 7... Bb7 {[%clk 0:02:57.2]} 8. d6 {[%clk
0:01:52.6]} 8... Ne4 {[%clk 0:02:45.3]} 9. Bd2 {[%clk 0:01:52.1]} 9... Nxd2
{[%clk 0:02:45.1]} 10. Qxd2 {[%clk 0:01:52.3]} 10... exd6 {[%clk 0:02:42.2]} 11.
e4 {[%clk 0:01:52.6]} 11... Be7 {[%clk 0:02:36.1]} 12. Nf3 {[%clk 0:01:53.2]}
12... Bf6 {[%clk 0:02:28]} 13. Bd3 {[%clk 0:01:51.3]} 13... Bxc3 {[%clk
0:02:06.8]} 14. bxc3 {[%clk 0:01:51.1]} 14... Nc6 {[%clk 0:01:58.2]} 15. O-O
{[%clk 0:01:51.1]} 15... Ne5 {[%clk 0:01:58.1]} 16. Nxe5 {[%clk 0:01:50]} 16...
dxe5 {[%clk 0:01:57.9]} 17. Rfe1 {[%clk 0:01:50.3]} 17... O-O {[%clk 0:01:55.3]}
18. Bc4 {[%clk 0:01:50.5]} 18... Bc6 {[%clk 0:01:51.8]} 19. Bd5 {[%clk
0:01:50.3]} 19... Bxd5 {[%clk 0:01:47.6]} 20. Qxd5 {[%clk 0:01:42.6]} 20... Qxc3
{[%clk 0:01:47.5]} 21. Rac1 {[%clk 0:01:40.8]} 21... Qd4 {[%clk 0:01:47.1]} 22.
Rxc5 {[%clk 0:01:40.1]} 22... Qxd5 {[%clk 0:01:27.3]} 23. Rxd5 {[%clk
0:01:40.2]} 23... Rxa2 {[%clk 0:01:23.7]} 24. Rxe5 {[%clk 0:01:38.6]} 24... Rb8
{[%clk 0:01:22]} 25. g3 {[%clk 0:01:24.3]} 25... g6 {[%clk 0:01:20.7]} 26. Re3
{[%clk 0:01:24.8]} 26... Rb6 {[%clk 0:01:12.6]} 27. Rd5 {[%clk 0:01:22.7]} 27...
Rf6 {[%clk 0:01:09.7]} 28. f4 {[%clk 0:01:02.4]} 28... Rb6 {[%clk 0:01:08.5]}
29. Rd1 {[%clk 0:01:01.9]} 29... Rbb2 {[%clk 0:01:07.6]} 30. h4 {[%clk
0:01:02.1]} 30... h5 {[%clk 0:01:01.6]} 31. f5 {[%clk 0:01:00.8]} 31... Rg2+
{[%clk 0:00:58.2]} 32. Kh1 {[%clk 0:00:59.2]} 32... gxf5 {[%clk 0:00:56.9]} 33.
exf5 {[%clk 0:00:59.2]} 33... Rgf2 {[%clk 0:00:56.8]} 34. Kg1 {[%clk 0:00:32.4]}
34... Rg2+ {[%clk 0:00:49]} 35. Kh1 {[%clk 0:00:31.8]} 35... Rh2+ {[%clk
0:00:48.3]} 36. Kg1 {[%clk 0:00:32.1]} 36... Rhg2+ {[%clk 0:00:48.5]} 37. Kh1
{[%clk 0:00:32.7]} 1/2-1/2

[Event "*** Titled Tuesday Blitz"]
[Site "Chess.com"]
[Date "2021.02.02"]
[Round "3"]
[White "LisikValera"]
[Black "C_K_G"]
[Result "1-0"]
[WhiteElo "2478"]
[BlackElo "2104"]
[TimeControl "180+1"]
[EndTime "10:30:15 PST"]
[Termination "LisikValera won on time"]

1. d4 {[%clk 0:02:59.2]} 1... d5 {[%clk 0:02:59.5]} 2. Bf4 {[%clk 0:02:56.8]}
2... e6 {[%clk 0:02:58.9]} 3. e3 {[%clk 0:02:57.2]} 3... Nf6 {[%clk 0:02:59.1]}
4. Nd2 {[%clk 0:02:56.3]} 4... Bd6 {[%clk 0:02:59]} 5. Bg3 {[%clk 0:02:56.4]}
5... c5 {[%clk 0:02:58.6]} 6. c3 {[%clk 0:02:56.1]} 6... Nc6 {[%clk 0:02:58.4]}
7. f4 {[%clk 0:02:56.2]} 7... c4 {[%clk 0:02:50.8]} 8. Ngf3 {[%clk 0:02:55.6]}
8... O-O {[%clk 0:02:50]} 9. Bh4 {[%clk 0:02:52.1]} 9... h6 {[%clk 0:02:48.3]}
10. Ne5 {[%clk 0:02:51.3]} 10... Be7 {[%clk 0:02:44.4]} 11. Be2 {[%clk
0:02:43.8]} 11... Qc7 {[%clk 0:02:38.7]} 12. O-O {[%clk 0:02:41.9]} 12... b5
{[%clk 0:02:34.8]} 13. a3 {[%clk 0:02:41]} 13... Bb7 {[%clk 0:02:33.3]} 14. g4
{[%clk 0:02:39]} 14... a5 {[%clk 0:02:30.5]} 15. Qe1 {[%clk 0:02:31.1]} 15...
Ne4 {[%clk 0:02:21.8]} 16. Nxe4 {[%clk 0:02:24.4]} 16... dxe4 {[%clk 0:02:22.7]}
17. Bxe7 {[%clk 0:02:23.6]} 17... Qxe7 {[%clk 0:02:21.9]} 18. Qg3 {[%clk
0:02:15.9]} 18... Nxe5 {[%clk 0:02:15.6]} 19. fxe5 {[%clk 0:02:15.7]} 19... f6
{[%clk 0:02:10.2]} 20. exf6 {[%clk 0:02:12.3]} 20... Rxf6 {[%clk 0:01:51.9]} 21.
Rxf6 {[%clk 0:02:09.4]} 21... Qxf6 {[%clk 0:01:41.9]} 22. Rf1 {[%clk 0:02:09.7]}
22... Qe7 {[%clk 0:01:40]} 23. Qe5 {[%clk 0:02:06.5]} 23... Bd5 {[%clk
0:01:29.5]} 24. g5 {[%clk 0:01:52.3]} 24... Qxg5+ {[%clk 0:01:23.2]} 25. Qxg5
{[%clk 0:01:51.8]} 25... hxg5 {[%clk 0:01:22.8]} 26. Kg2 {[%clk 0:01:51.3]}
26... b4 {[%clk 0:01:22.4]} 27. Kg3 {[%clk 0:01:48.2]} 27... bxc3 {[%clk
0:01:20.5]} 28. bxc3 {[%clk 0:01:48]} 28... Rb8 {[%clk 0:01:19.6]} 29. Kg4
{[%clk 0:01:46.5]} 29... Rb2 {[%clk 0:01:19.1]} 30. Rf2 {[%clk 0:01:44.7]} 30...
Rc2 {[%clk 0:01:08.1]} 31. Kxg5 {[%clk 0:01:40.1]} 31... Rxc3 {[%clk 0:00:59.5]}
32. Bh5 {[%clk 0:01:39.7]} 32... Rb3 {[%clk 0:00:40.4]} 33. Bf7+ {[%clk
0:01:38.5]} 33... Kh8 {[%clk 0:00:27.1]} 34. Rf4 {[%clk 0:01:31.1]} 34... g6
{[%clk 0:00:19.5]} 35. Kxg6 {[%clk 0:01:21.3]} 1-0

[Event "*** Titled Tuesday Blitz"]
[Site "Chess.com"]
[Date "2021.02.02"]
[Round "3"]
[White "Nachsueb"]
[Black "Smile2005"]
[Result "1/2-1/2"]
[WhiteElo "2173"]
[BlackElo "2349"]
[TimeControl "180+1"]
[EndTime "10:30:17 PST"]
[Termination "Game drawn by agreement"]

1. d4 {[%clk 0:03:00.9]} 1... Nf6 {[%clk 0:02:59.9]} 2. c4 {[%clk 0:03:00.8]}
2... g6 {[%clk 0:03:00.2]} 3. Nc3 {[%clk 0:03:00.4]} 3... Bg7 {[%clk 0:03:01.1]}
4. e4 {[%clk 0:03:00.5]} 4... O-O {[%clk 0:03:02]} 5. f4 {[%clk 0:03:00.7]} 5...
d6 {[%clk 0:03:02.7]} 6. Nf3 {[%clk 0:03:01.3]} 6... c5 {[%clk 0:03:03.3]} 7. d5
{[%clk 0:03:01.7]} 7... e6 {[%clk 0:03:03.4]} 8. dxe6 {[%clk 0:03:02.6]} 8...
Bxe6 {[%clk 0:03:03]} 9. Bd3 {[%clk 0:03:03.5]} 9... Nc6 {[%clk 0:03:03.1]} 10.
O-O {[%clk 0:03:03.4]} 10... Re8 {[%clk 0:03:03.1]} 11. f5 {[%clk 0:02:59.7]}
11... Bc8 {[%clk 0:03:02]} 12. Bg5 {[%clk 0:02:49.8]} 12... h6 {[%clk
0:03:01.3]} 13. Be3 {[%clk 0:02:49.2]} 13... Ne5 {[%clk 0:03:00]} 14. fxg6
{[%clk 0:02:41.7]} 14... fxg6 {[%clk 0:02:58.9]} 15. Qd2 {[%clk 0:02:41.3]}
15... Nfg4 {[%clk 0:02:53.4]} 16. Bf4 {[%clk 0:02:29.2]} 16... Nxf3+ {[%clk
0:02:49.1]} 17. Rxf3 {[%clk 0:02:29.2]} 17... Be6 {[%clk 0:02:22.8]} 18. Nd5
{[%clk 0:02:09.8]} 18... Bxd5 {[%clk 0:02:21.7]} 19. exd5 {[%clk 0:02:07]} 19...
Qf6 {[%clk 0:02:16.2]} 20. h3 {[%clk 0:01:46.7]} 20... Ne5 {[%clk 0:02:14.4]}
21. Bxe5 {[%clk 0:01:40.3]} 21... Qxe5 {[%clk 0:02:14.1]} 22. Bxg6 {[%clk
0:01:38.7]} 22... Rf8 {[%clk 0:02:14.3]} 23. Raf1 {[%clk 0:01:33.1]} 23... Qxb2
{[%clk 0:02:13.2]} 24. Bf7+ {[%clk 0:01:27.4]} 24... Kh8 {[%clk 0:02:11.3]} 25.
Qd3 {[%clk 0:01:14.6]} 25... Qd4+ {[%clk 0:02:07.4]} 26. Qxd4 {[%clk 0:01:14.8]}
26... Bxd4+ {[%clk 0:02:06.8]} 27. Kh1 {[%clk 0:01:15.4]} 27... Be5 {[%clk
0:02:05.9]} 28. g4 {[%clk 0:01:14.4]} 28... Kg7 {[%clk 0:02:05.4]} 29. Be6
{[%clk 0:01:12.8]} 29... Rxf3 {[%clk 0:02:00.6]} 30. Rxf3 {[%clk 0:01:13.7]}
30... Rf8 {[%clk 0:02:00.4]} 31. Kg2 {[%clk 0:01:14]} 31... Rxf3 {[%clk
0:01:56.9]} 32. Kxf3 {[%clk 0:01:14.4]} 32... Kf6 {[%clk 0:01:57.5]} 33. Ke4
{[%clk 0:01:13.9]} 33... Bg3 {[%clk 0:01:56.5]} 34. Kf3 {[%clk 0:01:12.2]} 34...
Bh4 {[%clk 0:01:56.4]} 35. Ke4 {[%clk 0:01:12.4]} 35... Bg5 {[%clk 0:01:55.9]}
36. Bc8 {[%clk 0:01:12.4]} 36... b6 {[%clk 0:01:55.4]} 37. Be6 {[%clk 0:01:12]}
37... Bc1 {[%clk 0:01:49.8]} 38. Bc8 {[%clk 0:01:10.9]} 38... Bd2 {[%clk
0:01:49.3]} 39. Be6 {[%clk 0:01:10]} 39... Kg5 {[%clk 0:01:47]} 40. Kf3 {[%clk
0:01:07.3]} 40... Kh4 {[%clk 0:01:45.8]} 41. Kg2 {[%clk 0:01:07.6]} 41... Bc3
{[%clk 0:01:41.4]} 42. a4 {[%clk 0:01:07.2]} 42... Bf6 {[%clk 0:01:31.3]} 43.
Bd7 {[%clk 0:01:07.5]} 43... Bd8 {[%clk 0:01:30.9]} 44. Be6 {[%clk 0:01:07.5]}
44... a6 {[%clk 0:01:30.4]} 45. Bd7 {[%clk 0:01:07.5]} 45... Kg5 {[%clk
0:01:28.8]} 46. Kf3 {[%clk 0:01:07.1]} 46... Bf6 {[%clk 0:01:27.4]} 47. Be8
{[%clk 0:01:07.3]} 47... Bc3 {[%clk 0:01:25.7]} 48. Bd7 {[%clk 0:01:07.2]} 48...
Kf6 {[%clk 0:01:25.8]} 49. Ke4 {[%clk 0:01:05.9]} 49... Be1 {[%clk 0:01:23.5]}
50. Bc6 {[%clk 0:01:04.5]} 50... Bc3 {[%clk 0:01:17.1]} 51. Bb7 {[%clk
0:01:04.8]} 51... a5 {[%clk 0:01:11.7]} 52. Bc6 {[%clk 0:01:04.9]} 1/2-1/2

[Event "*** Titled Tuesday Blitz"]
[Site "Chess.com"]
[Date "2021.02.02"]
[Round "3"]
[White "MF1966Idrisov"]
[Black "Artyom_ChessMate"]
[Result "1-0"]
[WhiteElo "2393"]
[BlackElo "2548"]
[TimeControl "180+1"]
[EndTime "10:30:19 PST"]
[Termination "MF1966Idrisov won by resignation"]

1. Nf3 {[%clk 0:03:00.9]} 1... d5 {[%clk 0:02:56.6]} 2. b3 {[%clk 0:03:00.8]}
2... Bf5 {[%clk 0:02:54.3]} 3. Bb2 {[%clk 0:03:00.9]} 3... e6 {[%clk 0:02:54.6]}
4. e3 {[%clk 0:03:01.3]} 4... c6 {[%clk 0:02:54.8]} 5. d4 {[%clk 0:03:01.7]}
5... Nf6 {[%clk 0:02:54.8]} 6. Bd3 {[%clk 0:03:02.2]} 6... Bxd3 {[%clk
0:02:55.1]} 7. cxd3 {[%clk 0:03:01.9]} 7... Be7 {[%clk 0:02:55.2]} 8. O-O {[%clk
0:03:01.9]} 8... O-O {[%clk 0:02:55.4]} 9. Nbd2 {[%clk 0:03:01.8]} 9... Nbd7
{[%clk 0:02:50.2]} 10. Ne5 {[%clk 0:03:01.7]} 10... c5 {[%clk 0:02:50]} 11. f4
{[%clk 0:03:00.5]} 11... cxd4 {[%clk 0:02:49.3]} 12. Bxd4 {[%clk 0:02:59.8]}
12... Rc8 {[%clk 0:02:44.1]} 13. Rc1 {[%clk 0:02:59.1]} 13... Qa5 {[%clk
0:02:40.6]} 14. a4 {[%clk 0:02:44.7]} 14... Bc5 {[%clk 0:02:14.6]} 15. Nxd7
{[%clk 0:02:20.3]} 15... Bxd4 {[%clk 0:01:44.8]} 16. Nxf8 {[%clk 0:02:16.6]}
16... Bxe3+ {[%clk 0:01:44.6]} 17. Kh1 {[%clk 0:02:16.7]} 17... Rxf8 {[%clk
0:01:44.5]} 18. Rc2 {[%clk 0:02:10.9]} 18... Qb4 {[%clk 0:01:43.5]} 19. f5
{[%clk 0:01:52.6]} 19... Ng4 {[%clk 0:01:32.5]} 20. fxe6 {[%clk 0:01:47.7]}
20... Nf2+ {[%clk 0:01:18.4]} 21. Rxf2 {[%clk 0:01:47.7]} 21... Bxf2 {[%clk
0:01:19.3]} 22. exf7+ {[%clk 0:01:47.6]} 22... Kh8 {[%clk 0:01:15.1]} 23. Rc7
{[%clk 0:01:40.2]} 23... Bb6 {[%clk 0:01:10.7]} 24. Rd7 {[%clk 0:01:37]} 24...
Qd4 {[%clk 0:01:07]} 25. Nf3 {[%clk 0:01:32.8]} 25... Qe3 {[%clk 0:01:06.7]} 26.
Qe1 {[%clk 0:01:26.8]} 26... Qxd3 {[%clk 0:00:55.6]} 27. Re7 {[%clk 0:01:07.1]}
27... h6 {[%clk 0:00:45.6]} 28. Re8 {[%clk 0:01:06.5]} 28... Bc5 {[%clk
0:00:45.8]} 29. Rxf8+ {[%clk 0:00:58.9]} 29... Bxf8 {[%clk 0:00:46.7]} 30. Qe8
{[%clk 0:00:58.7]} 1-0

[Event "*** Titled Tuesday Blitz"]
[Site "Chess.com"]
[Date "2021.02.02"]
[Round "3"]
[White "Grieve72"]
[Black "Kostukov_Alex"]
[Result "1-0"]
[WhiteElo "2516"]
[BlackElo "2296"]
[TimeControl "180+1"]
[EndTime "10:30:22 PST"]
[Termination "Grieve72 won on time"]

1. e4 {[%clk 0:03:00.9]} 1... c5 {[%clk 0:02:58.9]} 2. Nf3 {[%clk 0:03:00.7]}
2... g6 {[%clk 0:02:57.2]} 3. d4 {[%clk 0:02:57.2]} 3... cxd4 {[%clk 0:02:57.4]}
4. Nxd4 {[%clk 0:02:58.1]} 4... Bg7 {[%clk 0:02:57]} 5. c4 {[%clk 0:02:58.4]}
5... Nc6 {[%clk 0:02:56.1]} 6. Be3 {[%clk 0:02:58.8]} 6... Nf6 {[%clk 0:02:56]}
7. Nc3 {[%clk 0:02:59.4]} 7... O-O {[%clk 0:02:51.5]} 8. Be2 {[%clk 0:02:57.6]}
8... d6 {[%clk 0:02:51.2]} 9. f3 {[%clk 0:02:57.8]} 9... Bd7 {[%clk 0:02:51.6]}
10. Qd2 {[%clk 0:02:58]} 10... Nxd4 {[%clk 0:02:50.5]} 11. Bxd4 {[%clk
0:02:58.7]} 11... Bc6 {[%clk 0:02:49.4]} 12. h4 {[%clk 0:02:59]} 12... h5 {[%clk
0:02:47.6]} 13. O-O-O {[%clk 0:02:55.7]} 13... Qa5 {[%clk 0:02:22.1]} 14. Kb1
{[%clk 0:02:53.1]} 14... Rfc8 {[%clk 0:02:00.2]} 15. g4 {[%clk 0:02:36.5]} 15...
hxg4 {[%clk 0:01:57.2]} 16. h5 {[%clk 0:02:37.1]} 16... Nxh5 {[%clk 0:01:23.1]}
17. Bxg7 {[%clk 0:02:23.5]} 17... Kxg7 {[%clk 0:00:58.8]} 18. fxg4 {[%clk
0:02:23.6]} 18... Rh8 {[%clk 0:00:13.9]} 19. gxh5 {[%clk 0:02:20.3]} 19... g5
{[%clk 0:00:14.4]} 20. Qe3 {[%clk 0:01:19.5]} 20... Qe5 {[%clk 0:00:13.1]} 21.
Rhf1 {[%clk 0:01:08.9]} 21... e6 {[%clk 0:00:09.4]} 22. Qd4 {[%clk 0:00:45.8]}
22... Rh6 {[%clk 0:00:02]} 23. Qxe5+ {[%clk 0:00:44.8]} 23... dxe5 {[%clk
0:00:02.9]} 24. b4 {[%clk 0:00:41.2]} 1-0

[Event "*** Titled Tuesday Blitz"]
[Site "Chess.com"]
[Date "2021.02.02"]
[Round "3"]
[White "FMalexhdez"]
[Black "shaheus"]
[Result "0-1"]
[WhiteElo "2208"]
[BlackElo "2408"]
[TimeControl "180+1"]
[EndTime "10:30:22 PST"]
[Termination "shaheus won by resignation"]

1. e4 {[%clk 0:03:00.9]} 1... c5 {[%clk 0:02:59.6]} 2. Nf3 {[%clk 0:03:00.9]}
2... Nc6 {[%clk 0:02:59.7]} 3. d4 {[%clk 0:03:01.4]} 3... cxd4 {[%clk
0:02:59.5]} 4. Nxd4 {[%clk 0:03:01.9]} 4... Nf6 {[%clk 0:02:59.9]} 5. Nc3 {[%clk
0:03:02.1]} 5... d6 {[%clk 0:03:00.3]} 6. Be2 {[%clk 0:03:00.4]} 6... e6 {[%clk
0:02:59.8]} 7. O-O {[%clk 0:02:59]} 7... Be7 {[%clk 0:03:00.2]} 8. a4 {[%clk
0:02:58]} 8... O-O {[%clk 0:02:59.8]} 9. Nb3 {[%clk 0:02:57.8]} 9... a6 {[%clk
0:02:58.2]} 10. Be3 {[%clk 0:02:56]} 10... b6 {[%clk 0:02:51.3]} 11. f4 {[%clk
0:02:55.9]} 11... Bb7 {[%clk 0:02:43.9]} 12. Bf3 {[%clk 0:02:56.3]} 12... Qc7
{[%clk 0:02:39.6]} 13. Qe2 {[%clk 0:02:55]} 13... Rfd8 {[%clk 0:02:38.6]} 14. g4
{[%clk 0:02:52.9]} 14... Nd7 {[%clk 0:02:37.6]} 15. g5 {[%clk 0:02:50.6]} 15...
Nc5 {[%clk 0:02:37.2]} 16. Bg2 {[%clk 0:02:47.4]} 16... Rac8 {[%clk 0:02:18.3]}
17. Rf3 {[%clk 0:02:45.7]} 17... Nb4 {[%clk 0:01:55.1]} 18. Rh3 {[%clk
0:02:36.4]} 18... g6 {[%clk 0:01:47.2]} 19. Nxc5 {[%clk 0:02:12.6]} 19... bxc5
{[%clk 0:01:34]} 20. f5 {[%clk 0:02:00.2]} 20... d5 {[%clk 0:01:18.5]} 21. f6
{[%clk 0:01:35.4]} 21... Bd6 {[%clk 0:01:03.7]} 22. Qf2 {[%clk 0:00:52]} 22...
d4 {[%clk 0:00:54.2]} 23. Qh4 {[%clk 0:00:33]} 23... h5 {[%clk 0:00:53]} 24.
gxh6 {[%clk 0:00:32.9]} 24... Kh7 {[%clk 0:00:50]} 25. Nd1 {[%clk 0:00:23.5]}
25... Nxc2 {[%clk 0:00:43.6]} 26. Rc1 {[%clk 0:00:21.6]} 26... Nxe3 {[%clk
0:00:42.1]} 27. Nxe3 {[%clk 0:00:21.2]} 27... dxe3 {[%clk 0:00:42.3]} 28. e5
{[%clk 0:00:18.2]} 28... Bxe5 {[%clk 0:00:38.3]} 29. Bxb7 {[%clk 0:00:18.9]}
29... Qxb7 {[%clk 0:00:37.6]} 0-1

[Event "*** Titled Tuesday Blitz"]
[Site "Chess.com"]
[Date "2021.02.02"]
[Round "3"]
[White "PotapovaM"]
[Black "Paralinch"]
[Result "0-1"]
[WhiteElo "2643"]
[BlackElo "2891"]
[TimeControl "180+1"]
[EndTime "10:30:24 PST"]
[Termination "Paralinch won by checkmate"]

1. d4 {[%clk 0:02:47.7]} 1... d5 {[%clk 0:02:59.8]} 2. c4 {[%clk 0:02:38.1]}
2... c6 {[%clk 0:03:00.1]} 3. Nf3 {[%clk 0:02:37.3]} 3... Nf6 {[%clk 0:02:59.4]}
4. g3 {[%clk 0:02:38]} 4... Bf5 {[%clk 0:02:55.7]} 5. Nc3 {[%clk 0:02:37.7]}
5... e6 {[%clk 0:02:55.8]} 6. Nh4 {[%clk 0:02:38.4]} 6... dxc4 {[%clk
0:02:56.4]} 7. Nxf5 {[%clk 0:02:33.3]} 7... exf5 {[%clk 0:02:57.3]} 8. e3 {[%clk
0:02:33.6]} 8... Nbd7 {[%clk 0:02:57.3]} 9. Bxc4 {[%clk 0:02:33.4]} 9... Nb6
{[%clk 0:02:57.7]} 10. Be2 {[%clk 0:02:30.1]} 10... Qd7 {[%clk 0:02:56.6]} 11.
O-O {[%clk 0:02:29.3]} 11... h5 {[%clk 0:02:54.1]} 12. Bf3 {[%clk 0:02:22.9]}
12... h4 {[%clk 0:02:54]} 13. Re1 {[%clk 0:02:03.1]} 13... hxg3 {[%clk
0:02:53.6]} 14. hxg3 {[%clk 0:02:00.3]} 14... Bb4 {[%clk 0:02:49.8]} 15. Qb3
{[%clk 0:01:55.9]} 15... Ba5 {[%clk 0:02:01.8]} 16. Bd2 {[%clk 0:01:32.3]} 16...
Ne4 {[%clk 0:01:52]} 17. Rad1 {[%clk 0:00:59.2]} 17... Bxc3 {[%clk 0:01:40.6]}
18. Bxc3 {[%clk 0:00:56.1]} 18... Nd5 {[%clk 0:01:37.2]} 19. Qc2 {[%clk
0:00:53.3]} 19... Qe6 {[%clk 0:01:29.1]} 20. Kg2 {[%clk 0:00:46.3]} 20... O-O-O
{[%clk 0:01:25.1]} 21. Rh1 {[%clk 0:00:46.3]} 21... g5 {[%clk 0:00:56.6]} 22.
Ba5 {[%clk 0:00:45.3]} 22... Rdg8 {[%clk 0:00:54.4]} 23. a3 {[%clk 0:00:41.7]}
23... g4 {[%clk 0:00:53.6]} 24. Be2 {[%clk 0:00:41.7]} 24... Nxf2 {[%clk
0:00:49.6]} 25. Kxf2 {[%clk 0:00:36.8]} 25... Nxe3 {[%clk 0:00:44.6]} 26. Qd3
{[%clk 0:00:32]} 26... f4 {[%clk 0:00:41.2]} 27. d5 {[%clk 0:00:22.4]} 27...
fxg3+ {[%clk 0:00:39.8]} 28. Kxg3 {[%clk 0:00:22.5]} 28... Qe5+ {[%clk
0:00:39.9]} 29. Kf2 {[%clk 0:00:18.6]} 29... Qf4+ {[%clk 0:00:39.8]} 30. Ke1
{[%clk 0:00:19.3]} 30... Ng2# {[%clk 0:00:39.3]} 0-1

[Event "*** Titled Tuesday Blitz"]
[Site "Chess.com"]
[Date "2021.02.02"]
[Round "3"]
[White "hleol"]
[Black "DonPreuss"]
[Result "1-0"]
[WhiteElo "2407"]
[BlackElo "2207"]
[TimeControl "180+1"]
[EndTime "10:30:31 PST"]
[Termination "hleol won by resignation"]

1. d4 {[%clk 0:03:00.9]} 1... Nf6 {[%clk 0:02:56.1]} 2. Bg5 {[%clk 0:03:00.2]}
2... Ne4 {[%clk 0:02:46.1]} 3. Bf4 {[%clk 0:02:59.5]} 3... d5 {[%clk 0:02:42.3]}
4. f3 {[%clk 0:02:58.5]} 4... Nf6 {[%clk 0:02:41]} 5. Nc3 {[%clk 0:02:58.4]}
5... e6 {[%clk 0:02:41.2]} 6. a3 {[%clk 0:02:53.1]} 6... Bd6 {[%clk 0:02:40.3]}
7. Bxd6 {[%clk 0:02:49.4]} 7... Qxd6 {[%clk 0:02:40.3]} 8. e3 {[%clk 0:02:49.7]}
8... O-O {[%clk 0:02:39.9]} 9. Bd3 {[%clk 0:02:49.7]} 9... a6 {[%clk 0:02:40.3]}
10. Nge2 {[%clk 0:02:49.9]} 10... c5 {[%clk 0:02:39.4]} 11. dxc5 {[%clk
0:02:48.3]} 11... Qxc5 {[%clk 0:02:37.8]} 12. Qd2 {[%clk 0:02:48.9]} 12... Nc6
{[%clk 0:02:31]} 13. O-O-O {[%clk 0:02:48.4]} 13... b5 {[%clk 0:02:25.9]} 14.
Nd4 {[%clk 0:02:46.2]} 14... b4 {[%clk 0:02:23]} 15. Nxc6 {[%clk 0:02:39.5]}
15... Qxc6 {[%clk 0:02:00]} 16. axb4 {[%clk 0:02:37.2]} 16... Bd7 {[%clk
0:02:00.4]} 17. g4 {[%clk 0:02:21.9]} 17... Rfb8 {[%clk 0:01:59.2]} 18. g5
{[%clk 0:02:20.7]} 18... Ne8 {[%clk 0:01:58.3]} 19. h4 {[%clk 0:01:58]} 19...
Rxb4 {[%clk 0:01:29.3]} 20. Nxd5 {[%clk 0:01:55]} 20... Ra4 {[%clk 0:01:29.6]}
21. Nc3 {[%clk 0:01:39.8]} 21... Ra1+ {[%clk 0:01:21.7]} 22. Nb1 {[%clk
0:01:39.6]} 22... Qa4 {[%clk 0:01:04.7]} 23. h5 {[%clk 0:01:02.4]} 23... Qa2
{[%clk 0:00:51.5]} 24. c3 {[%clk 0:01:00.3]} 24... Bc6 {[%clk 0:00:47]} 25. e4
{[%clk 0:00:50.2]} 25... Ba4 {[%clk 0:00:46.8]} 26. Rdg1 {[%clk 0:00:45.8]}
26... Rb8 {[%clk 0:00:37.7]} 27. g6 {[%clk 0:00:43.8]} 27... f6 {[%clk
0:00:31.8]} 28. gxh7+ {[%clk 0:00:43.2]} 28... Kh8 {[%clk 0:00:31.2]} 29. e5
{[%clk 0:00:43]} 29... f5 {[%clk 0:00:27.4]} 30. h6 {[%clk 0:00:42.3]} 30... Rd8
{[%clk 0:00:22.6]} 31. hxg7+ {[%clk 0:00:41.1]} 31... Nxg7 {[%clk 0:00:23.1]}
32. Rxg7 {[%clk 0:00:40]} 32... Rxb1+ {[%clk 0:00:22.4]} 33. Bxb1 {[%clk
0:00:38.6]} 1-0

[Event "*** Titled Tuesday Blitz"]
[Site "Chess.com"]
[Date "2021.02.02"]
[Round "3"]
[White "ural58"]
[Black "BikingBrian"]
[Result "1-0"]
[WhiteElo "2471"]
[BlackElo "2318"]
[TimeControl "180+1"]
[EndTime "10:30:33 PST"]
[Termination "ural58 won by resignation"]

1. e4 {[%clk 0:03:00.9]} 1... c5 {[%clk 0:02:59.2]} 2. b3 {[%clk 0:03:00.6]}
2... g6 {[%clk 0:02:57.6]} 3. Bb2 {[%clk 0:03:00.5]} 3... Nf6 {[%clk 0:02:57.9]}
4. e5 {[%clk 0:03:00.6]} 4... Nd5 {[%clk 0:02:49]} 5. Nc3 {[%clk 0:03:00.5]}
5... Nxc3 {[%clk 0:02:48.5]} 6. dxc3 {[%clk 0:03:01.4]} 6... Bg7 {[%clk
0:02:48.5]} 7. Qd5 {[%clk 0:02:56]} 7... O-O {[%clk 0:02:42]} 8. O-O-O {[%clk
0:02:50.8]} 8... a5 {[%clk 0:02:36.5]} 9. a4 {[%clk 0:02:48.4]} 9... Na6 {[%clk
0:02:32.6]} 10. Bxa6 {[%clk 0:02:40.5]} 10... Rxa6 {[%clk 0:02:32.3]} 11. Qxc5
{[%clk 0:02:34.3]} 11... d6 {[%clk 0:02:23.1]} 12. exd6 {[%clk 0:02:30.7]} 12...
exd6 {[%clk 0:02:24]} 13. Qd5 {[%clk 0:02:16.9]} 13... Be6 {[%clk 0:02:13.6]}
14. Qd3 {[%clk 0:02:01.3]} 14... Qc7 {[%clk 0:02:07.7]} 15. Ne2 {[%clk
0:02:01.3]} 15... Rc6 {[%clk 0:01:59.1]} 16. Nd4 {[%clk 0:02:00.6]} 16... Bxd4
{[%clk 0:01:48.5]} 17. Qxd4 {[%clk 0:02:00]} 17... f6 {[%clk 0:01:37.7]} 18.
Rhe1 {[%clk 0:01:58]} 18... Re8 {[%clk 0:01:36.3]} 19. f3 {[%clk 0:01:51.4]}
19... Qf7 {[%clk 0:01:31]} 20. h4 {[%clk 0:01:45.1]} 20... d5 {[%clk 0:01:30.2]}
21. g4 {[%clk 0:01:41.5]} 21... Rec8 {[%clk 0:01:29.4]} 22. Re3 {[%clk
0:01:38.4]} 22... Rc5 {[%clk 0:01:27]} 23. Rde1 {[%clk 0:01:37.7]} 23... R8c6
{[%clk 0:01:23.3]} 24. Kb1 {[%clk 0:01:17.4]} 24... b5 {[%clk 0:01:22.4]} 25.
Rxe6 {[%clk 0:01:16.2]} 25... Rxe6 {[%clk 0:01:20.3]} 26. Rxe6 {[%clk 0:01:16]}
26... Qxe6 {[%clk 0:01:16.9]} 27. Qxc5 {[%clk 0:01:16.1]} 27... bxa4 {[%clk
0:01:17.1]} 28. bxa4 {[%clk 0:01:09.6]} 28... Qd7 {[%clk 0:01:04.5]} 29. Qb5
{[%clk 0:01:05.9]} 29... Qd6 {[%clk 0:00:56.4]} 30. Qxa5 {[%clk 0:01:01.6]}
30... h5 {[%clk 0:00:56.9]} 31. gxh5 {[%clk 0:01:01.1]} 31... gxh5 {[%clk
0:00:56]} 32. Qb4 {[%clk 0:00:59.9]} 32... Qg3 {[%clk 0:00:51.4]} 33. a5 {[%clk
0:00:54]} 33... Qxf3 {[%clk 0:00:51.4]} 34. Ka2 {[%clk 0:00:44.1]} 34... f5
{[%clk 0:00:43.1]} 35. a6 {[%clk 0:00:42.1]} 35... Qf1 {[%clk 0:00:43]} 36. Qb8+
{[%clk 0:00:38.9]} 36... Kh7 {[%clk 0:00:41.7]} 37. Qc7+ {[%clk 0:00:36.1]}
37... Kg6 {[%clk 0:00:41.3]} 38. a7 {[%clk 0:00:34.9]} 38... Qa6+ {[%clk
0:00:40.6]} 39. Ba3 {[%clk 0:00:35]} 39... f4 {[%clk 0:00:39.2]} 40. Qd6+ {[%clk
0:00:29.3]} 40... Qxd6 {[%clk 0:00:37.2]} 41. Bxd6 {[%clk 0:00:30.2]} 1-0